[Event "2nd Cambridge Open 2024"]
[Site "Cambridge"]
[Date "2024.02.21"]
[Round "4.43"]
[White "Mocic, Ivano"]
[Black "OShea, Colm"]
[Result "1-0"]
[ECO "D02"]
[WhiteElo "2008"]
[BlackElo "1729"]
[Annotator "RC"]
[PlyCount "189"]
[EventDate "2024.02.18"]
[EventType "swiss"]
[EventCountry "ENG"]
[SourceTitle "playchess.com"]
[Source "ChessBase"]
[SourceQuality "1"]
[TimeControl "5400+30"]

1. d4 {[%emt 0:00:02]} d5 {[%emt 0:00:06]} 2. Nf3 {[%emt 0:00:07]} Nf6 {[%emt 0:00:02]} 3. Bf4 {[%emt 0:00:07]} c5 {[%emt 0:00:47]} 4. e3 {[%emt 0:00:50]} Nc6 {[%emt 0:00:13]} 5. Nbd2 {[%emt 0:00:07]} Qb6 {[%emt 0:04:42]} 6. dxc5 {[%emt 0:00:22]} Qxb2 {[%emt 0:05:02]} 7. c4 {[%emt 0:07:15]} e6 {[%emt 0:06:10]} 8. Qc1 {[%emt 0:05:23]} Qb4 {[%emt 0:02:59]} 9. a3 {[%emt 0:10:24]} Qxc5 {[%emt 0:01:30]} 10. Nb3 {[%emt 0:04:08]} Qb6 {[%emt 0:02:26]} 11. Rb1 {[%emt 0:04:17]} Qd8 {[%emt 0:03:18]} 12. Be2 {[%emt 0:11:08]} Be7 {[%emt 0:08:56]} 13. O-O {[%emt 0:01:18]} O-O {[%emt 0:02:34]} 14. Rd1 {[%emt 0:00:19]} Qe8 {[%emt 0:00:56]} 15. Bg5 {[%emt 0:08:11]} dxc4 {[%emt 0:05:45]} 16. Bxc4 {[%emt 0:00:49]} a6 {[%emt 0:07:37]} 17. Bd3 {[%emt 0:08:18]} Nd5 {[%emt 0:06:48]} 18. Bxe7 {[%emt 0:03:15]} Ndxe7 {[%emt 0:05:49]} 19. Qc2 {[%emt 0:00:45]} h6 {[%emt 0:02:23]} 20. Nc5 {[%emt 0:01:18]} b5 {[%emt 0:02:09]} 21. a4 {[%emt 0:03:13]} b4 {[%emt 0:03:05]} 22. e4 {[%emt 0:05:43]} e5 {[%emt 0:01:29]} 23. h3 {[%emt 0:00:28]} f5 {[%emt 0:10:38]} 24. exf5 {[%emt 0:03:52]} Bxf5 {[%emt 0:00:52]} 25. Qe2 {[%emt 0:06:52]} Bxd3 {[%emt 0:02:32]} 26. Qxd3 {[%emt 0:00:45]} a5 {[%emt 0:01:55]} 27. Ne6 {[%emt 0:00:52]} Qf7 {[%emt 0:05:16]} 28. Nxf8 {[%emt 0:14:22]} Rxf8 {[%emt 0:00:04]} 29. Re1 {[%emt 0:00:00]} Nd4 {[%emt 0:03:25]} 30. Nxd4 {[%emt 0:00:00]} exd4 {[%emt 0:01:18]} 31. Qxd4 {[%emt 0:00:00]} Nd5 {[%emt 0:00:44]} 32. Rb2 {[%emt 0:00:00]} Nc3 {[%emt 0:00:16]} 33. Ra1 {[%emt 0:00:00]} Qc7 {[%emt 0:00:58]} 34. Qd3 {[%emt 0:00:00]} Qc5 {[%emt 0:00:50]} 35. Rc2 {[%emt 0:00:36]} Kh8 {[%emt 0:00:38]} 36. Rac1 {[%emt 0:01:21]} Qb6 {[%emt 0:02:01]} 37. Ra1 {[%emt 0:00:58]} Qf6 {[%emt 0:00:15]} 38. Rf1 {[%emt 0:01:09]} Qb6 {[%emt 0:00:31]} 39. Rxc3 {[%emt 0:00:36]} bxc3 {[%emt 0:00:05]} 40. Qxc3 {[%emt 0:00:06]} Qb4 {[%emt 0:03:26]} 41. Qxb4 {[%emt 0:00:13]} axb4 {[%emt 0:00:00]} 42. Rb1 {[%emt 0:00:08]} Rb8 {[%emt 0:00:00]} 43. Rb3 {[%emt 0:00:54]} Kg8 {[%emt 0:00:00]} 44. Kf1 {[%emt 0:00:05]} Kf7 {[%emt 0:00:00]} 45. a5 {[%emt 0:01:01]} Ra8 {[%emt 0:00:00]} 46. Ke2 {[%emt 0:00:08]} Rxa5 {[%emt 0:00:00]} 47. Rxb4 {[%emt 0:00:01]} h5 {[%emt 0:00:00]} 48. Kf3 {[%emt 0:00:42]} g6 {[%emt 0:00:00]} 49. g3 {[%emt 0:00:37]} Kg7 {[%emt 0:00:00]} 50. Rb6 {[%emt 0:00:34]} Rf5+ {[%emt 0:00:13]} 51. Ke3 {[%emt 0:00:13]} Re5+ {[%emt 0:00:15]} 52. Kf3 {[%emt 0:00:08]} Rf5+ {[%emt 0:00:03]} 53. Kg2 {[%emt 0:00:05]} Ra5 {[%emt 0:00:18]} 54. Rb4 {[%emt 0:00:15]} Rc5 {[%emt 0:00:14]} 55. Kf3 {[%emt 0:00:12]} Rf5+ {[%emt 0:00:10]} 56. Rf4 {[%emt 0:00:04]} Ra5 {[%emt 0:00:03]} 57. Rd4 {[%emt 0:00:50]} Rf5+ {[%emt 0:00:14]} 58. Ke3 {[%emt 0:00:15]} Re5+ {[%emt 0:00:18]} 59. Kd3 {[%emt 0:00:07]} Rf5 {[%emt 0:00:25]} 60. f4 {[%emt 0:00:17]} Rf7 {[%emt 0:01:16]} 61. Ke3 {[%emt 0:00:26]} Re7+ {[%emt 0:00:07]} 62. Re4 {[%emt 0:00:05]} Ra7 {[%emt 0:00:16]} 63. Kf3 {[%emt 0:00:16]} Ra3+ {[%emt 0:00:07]} 64. Re3 {[%emt 0:00:06]} Ra4 {[%emt 0:00:13]} 65. g4 {[%emt 0:00:50]} hxg4+ {[%emt 0:00:04]} 66. hxg4 {[%emt 0:00:47]} Kf7 {[%emt 0:03:31]} 67. Kg3 {[%emt 0:01:08]} Kf6 {[%emt 0:00:35]} 68. Rb3 {[%emt 0:00:49]} Ra7 {[%emt 0:01:42]} 69. Rb6+ {[%emt 0:00:27]} Kf7 {[%emt 0:00:19]} 70. Kh4 {[%emt 0:00:24]} Ra5 {[%emt 0:01:10]} 71. Rc6 {[%emt 0:01:45]} Rb5 {[%emt 0:00:09]} 72. Rc7+ {[%emt 0:00:37]} Kg8 {[%emt 0:00:41]} 73. Re7 {[%emt 0:00:27]} Ra5 {[%emt 0:00:54]} 74. Re5 {[%emt 0:00:18]} Ra6 {[%emt 0:01:09]} 75. Kg5 {[%emt 0:00:10]} Kf7 {[%emt 0:00:33]} 76. Rb5 {[%emt 0:00:24]} Rc6 {[%emt 0:00:32]} 77. Rb7+ {[%emt 0:00:47]} Kg8 {[%emt 0:01:13]} 78. Kh6 {[%emt 0:00:47]} Rf6 {[%emt 0:01:10]} 79. Rb8+ {[%emt 0:01:00]} Kf7 {[%emt 0:00:06]} 80. Rb7+ {[%emt 0:00:18]} Kg8 {[%emt 0:00:19]} 81. Kg5 {[%emt 0:01:23]} Ra6 {[%emt 0:00:03]} 82. Re7 {[%emt 0:01:08]} Rb6 {[%emt 0:00:27]} 83. Re1 {[%emt 0:00:56]} Kg7 {[%emt 0:01:09]} 84. Re5 {[%emt 0:00:24]} Ra6 {[%emt 0:00:13]} 85. Rd5 {[%emt 0:00:35]} Rb6 {[%emt 0:00:11]} 86. Rd7+ {[%emt 0:00:15]} Kg8 {[%emt 0:00:45]} 87. Re7 {[%emt 0:00:43]} Ra6 {[%emt 0:00:09]} 88. Kh6 {[%emt 0:00:30]} Rf6 {[%emt 0:00:39]} 89. Re4 {[%emt 0:00:24]} Ra6 {[%emt 0:01:07]} 90. Rc4 {[%emt 0:00:27]} Rb6 {[%emt 0:00:21]} 91. Rc8+ {[%emt 0:00:30]} Kf7 {[%emt 0:00:10]} 92. Kh7 {[%emt 0:00:37]} Rf6 {[%emt 0:01:37]} 93. Rc7+ {[%emt 0:00:24]} Kf8 {[%emt 0:00:12]} 94. f5 {[%emt 0:00:32]} gxf5 {[%emt 0:00:28]} 95. g5 {[%emt 0:00:06]} 1-0

[Event "2nd Cambridge Open 2024"]
[Site "Cambridge"]
[Date "2024.02.21"]
[Round "4.44"]
[White "Underwood, Jon"]
[Black "Berkley, Stephen W"]
[Result "1-0"]
[ECO "A03"]
[WhiteElo "1993"]
[BlackElo "1667"]
[Annotator "NA COMBH"]
[PlyCount "113"]
[EventDate "2024.02.18"]
[EventType "swiss"]
[EventCountry "ENG"]
[SourceTitle "playchess.com"]
[Source "ChessBase"]
[SourceQuality "1"]
[TimeControl "5400+30"]

1. f4 {[%emt 0:00:02]} Nh6 {[%emt 0:00:14]} 2. Nf3 {[%emt 0:02:33]} d5 {[%emt 0:00:18]} 3. e3 {[%emt 0:00:39]} g6 {[%emt 0:02:55]} 4. d4 {[%emt 0:00:35]} Bg7 {[%emt 0:00:43]} 5. b3 {[%emt 0:02:34]} O-O {[%emt 0:00:52]} 6. Bd3 {[%emt 0:00:31] A03: Bird's Opening with 1...d5.} Bf5 {[%emt 0:03:01]} 7. Be2 {[%emt 0:00:32]} c5 {[%emt 0:08:26]} 8. Bb2 {[%emt 0:00:56]} Nc6 {[%emt 0:02:33]} 9. O-O {[%emt 0:01:28]} Ng4 {[%emt 0:05:34]} 10. Qd2 {[%emt 0:00:23]} cxd4 {[%emt 0:00:58]} 11. Nxd4 {[%emt 0:07:53]} Nxd4 {[%emt 0:00:33]} 12. Bxd4 {[%emt 0:00:23]} Nf6 {[%emt 0:04:47]} 13. c4 {[%emt 0:03:08]} dxc4 {[%emt 0:03:39]} 14. bxc4 {[%emt 0:02:03]} Ne4 {[%emt 0:06:17]} 15. Qb2 {[%emt 0:00:11]} Bxd4 {[%emt 0:00:39]} 16. exd4 {[%emt 0:00:28]} Qd7 {[%emt 0:08:03]} 17. Nd2 {[%emt 0:00:57]} Nxd2 {[%emt 0:04:46]} 18. Qxd2 {[%emt 0:00:03]} Rad8 {[%emt 0:00:16]} 19. Rad1 {[%emt 0:01:36]} Bg4 $11 {[%emt 0:04:57]} 20. Bxg4 {[%emt 0:06:09]} Qxg4 {[%emt 0:03:19]} 21. f5 {[%emt 0:05:11]} Kg7 {[%emt 0:11:59]} 22. Rf3 {[%emt 0:07:09]} Rd7 {[%emt 0:04:40]} 23. fxg6 {[%emt 0:02:32]} hxg6 {[%emt 0:02:18]} 24. Rg3 {[%emt 0:02:01]} Qe4 {[%emt 0:02:20]} 25. Qc3 {[%emt 0:14:42]} f6 {[%emt 0:01:54]} 26. Re3 {[%emt 0:06:09]} Qf4 {[%emt 0:00:35]} 27. Rf3 {[%emt 0:04:41]} Qe4 {[%emt 0:00:35]} 28. Rh3 {[%emt 0:08:18]} Rfd8 {[%emt 0:03:23]} 29. d5 {[%emt 0:01:36]} Rc7 {[%emt 0:03:15]} 30. Re1 {[%emt 0:04:05]} Qf4 {[%emt 0:03:05]} 31. Rf3 {[%emt 0:04:02]} Qd6 {[%emt 0:00:11]} 32. Qd4 {[%emt 0:01:44]} Rdd7 {[%emt 0:00:34]} 33. Rfe3 {[%emt 0:02:59]} Kf7 {[%emt 0:00:39]} 34. Qh4 {[%emt 0:00:56]} Qc5 {[%emt 0:06:39]} 35. Qh7+ {[%emt 0:00:46]} Kf8 {[%emt 0:00:06]} 36. Qxg6 {[%emt 0:00:51]} Qd4 {[%emt 0:01:28]} 37. Kh1 {[%emt 0:01:26]} Rxc4 {[%emt 0:00:33]} 38. Rh3 {[%emt 0:01:02]} f5 {[%emt 0:00:14]} 39. Qxf5+ {[%emt 0:00:08]} Ke8 {[%emt 0:00:10]} 40. Qg6+ {[%emt 0:02:13]} Kd8 {[%emt 0:00:10]} 41. Qg8+ {[%emt 0:00:30]} Kc7 {[%emt 0:00:05]} 42. Rh8 {[%emt 0:02:08]} Qe4 {[%emt 0:01:52]} 43. Qg3+ {[%emt 0:01:25]} Qf4 {[%emt 0:00:10]} 44. Qa3 {[%emt 0:00:40]} Qd6 {[%emt 0:00:23]} 45. Qa5+ {[%emt 0:00:45]} Qb6 {[%emt 0:00:08]} 46. Qxb6+ {[%emt 0:00:10]} Kxb6 {[%emt 0:00:15]} 47. h4 {[%emt 0:00:43]} Rxd5 {[%emt 0:00:34]} 48. Rxe7 {[%emt 0:00:17]} Rdd4 {[%emt 0:00:17]} 49. Reh7 {[%emt 0:00:37]} Rd2 {[%emt 0:00:10]} 50. Rb8 {[%emt 0:00:22]} Rc7 {[%emt 0:00:22]} 51. Rxc7 {[%emt 0:00:13]} Kxc7 {[%emt 0:00:06]} 52. Rf8 {[%emt 0:00:31]} Rxa2 {[%emt 0:00:12]} 53. Kh2 {[%emt 0:00:10]} Ra3 {[%emt 0:00:38]} 54. h5 {[%emt 0:00:10]} Ra5 {[%emt 0:00:25]} 55. g4 {[%emt 0:00:10]} Rg5 {[%emt 0:00:34]} 56. Kg3 {[%emt 0:00:25]} a5 {[%emt 0:00:06]} 57. h6 {[%emt 0:00:19]} 1-0

[Event "2nd Cambridge Open 2024"]
[Site "Cambridge"]
[Date "2024.02.21"]
[Round "4.45"]
[White "Hutchinson, Norman A"]
[Black "Chiang, Richard"]
[Result "1-0"]
[ECO "B12"]
[WhiteElo "1962"]
[BlackElo "1609"]
[Annotator "NA RC"]
[PlyCount "127"]
[EventDate "2024.02.18"]
[EventType "swiss"]
[EventCountry "ENG"]
[SourceTitle "playchess.com"]
[Source "ChessBase"]
[SourceQuality "1"]
[TimeControl "5400+30"]

1. e4 {[%emt 0:00:05]} c6 {[%emt 0:00:01]} 2. d4 {[%emt 0:00:07]} d5 {[%emt 0:00:06]} 3. e5 {[%emt 0:00:05]} c5 {[%emt 0:00:18]} 4. dxc5 {[%emt 0:00:13]} Nc6 {[%emt 0:00:11]} 5. Nf3 {[%emt 0:00:30]} Bg4 {[%emt 0:00:53]} 6. c3 {[%emt 0:01:12]} e6 {[%emt 0:02:06]} 7. Bb5 {[%emt 0:01:21]} Bxf3 {[%emt 0:02:44]} 8. Qxf3 {[%emt 0:00:37]} Bxc5 {[%emt 0:00:55]} 9. Qg3 {[%emt 0:01:39]} g6 {[%emt 0:05:03]} 10. O-O {[%emt 0:04:47]} Nge7 {[%emt 0:04:24]} 11. Bg5 {[%emt 0:04:43]} O-O {[%emt 0:00:32]} 12. b4 {[%emt 0:08:11]} Bb6 {[%emt 0:04:20]} 13. Bxc6 {[%emt 0:03:51]} bxc6 {[%emt 0:00:36]} 14. Qh4 {[%emt 0:01:04]} Re8 {[%emt 0:03:44]} 15. Bf6 {[%emt 0:00:25]} Qd7 {[%emt 0:07:46]} 16. g4 {[%emt 0:00:22]} h5 {[%emt 0:00:34]} 17. Qg5 {[%emt 0:03:16]} Kh7 {[%emt 0:01:57]} 18. Nd2 {[%emt 0:00:21]} Ng8 {[%emt 0:12:02]} 19. gxh5 {[%emt 0:02:58]} Bd8 {[%emt 0:08:59]} 20. hxg6+ {[%emt 0:01:58]} fxg6 {[%emt 0:01:06]} 21. Qh4+ {[%emt 0:00:08]} Nh6 {[%emt 0:00:10]} 22. Nf3 {[%emt 0:00:59]} Bxf6 {[%emt 0:02:38]} 23. exf6 {[%emt 0:00:11]} Rh8 {[%emt 0:02:37]} 24. Ne5 {[%emt 0:02:55]} Qc7 {[%emt 0:02:09]} 25. f4 {[%emt 0:05:53]} Kg8 {[%emt 0:07:16]} 26. Qg5 {[%emt 0:05:21]} Nf5 {[%emt 0:11:24]} 27. f7+ {[%emt 0:09:12]} Kf8 {[%emt 0:02:39]} 28. Qf6 {[%emt 0:01:20]} Rh6 {[%emt 0:03:39]} 29. Nxg6+ {[%emt 0:02:22]} Rxg6+ {[%emt 0:00:19]} 30. Qxg6 {[%emt 0:00:10]} Qxf7 {[%emt 0:07:09]} 31. Qxf7+ {[%emt 0:00:09]} Kxf7 {[%emt 0:00:12]} 32. Rae1 {[%emt 0:00:20]} Rg8+ {[%emt 0:00:23]} 33. Kh1 {[%emt 0:01:15]} Rh8 {[%emt 0:00:33]} 34. Rf3 {[%emt 0:00:30]} Nd6 {[%emt 0:00:50]} 35. Re2 {[%emt 0:04:46]} Rh4 {[%emt 0:02:20]} 36. h3 {[%emt 0:01:27]} Kf6 {[%emt 0:00:34]} 37. Kh2 {[%emt 0:00:25]} Ne4 {[%emt 0:00:28]} 38. c4 {[%emt 0:01:03]} Kf5 {[%emt 0:00:43]} 39. c5 {[%emt 0:00:46]} d4 {[%emt 0:01:26]} 40. Rd3 {[%emt 0:01:43]} e5 {[%emt 0:01:21]} 41. fxe5 {[%emt 0:02:31]} Kxe5 {[%emt 0:00:06]} 42. Kg2 {[%emt 0:03:01]} Rf4 {[%emt 0:01:33]} 43. Rf3 {[%emt 0:01:22]} Rh4 {[%emt 0:00:35]} 44. Kf1 {[%emt 0:00:51]} Kd5 {[%emt 0:00:14]} 45. a3 {[%emt 0:03:14]} Kc4 {[%emt 0:00:27]} 46. Ke1 {[%emt 0:01:17]} Nc3 {[%emt 0:01:13]} 47. Re7 {[%emt 0:00:14]} Nb5 {[%emt 0:02:03]} 48. Re6 {[%emt 0:01:07]} Nxa3 {[%emt 0:00:41]} 49. Rxa3 {[%emt 0:00:07]} Kxb4 {[%emt 0:00:07]} 50. Rxa7 {[%emt 0:00:48]} Kxc5 {[%emt 0:00:15]} 51. Ra3 {[%emt 0:00:58]} Kd5 {[%emt 0:00:35]} 52. Rg6 {[%emt 0:00:19]} c5 {[%emt 0:00:17]} 53. Rg4 {[%emt 0:00:08]} Rh5 {[%emt 0:00:11]} 54. h4 {[%emt 0:00:10]} Kc4 {[%emt 0:00:30]} 55. Rh3 {[%emt 0:00:21]} Rd5 {[%emt 0:00:37]} 56. Kd2 {[%emt 0:00:38]} Kb4 {[%emt 0:00:16]} 57. h5 {[%emt 0:00:29]} c4 {[%emt 0:00:06]} 58. h6 {[%emt 0:00:18]} c3+ {[%emt 0:00:12]} 59. Kd3 {[%emt 0:00:14]} Kb3 {[%emt 0:00:27]} 60. Rg2 {[%emt 0:01:00]} Rc5 {[%emt 0:02:15]} 61. Rc2 {[%emt 0:00:48]} Re5 {[%emt 0:00:38]} 62. h7 {[%emt 0:00:28]} Re3+ {[%emt 0:00:20]} 63. Rxe3 {[%emt 0:00:05]} dxe3 {[%emt 0:00:10]} 64. h8=Q {[%emt 0:00:31]} 1-0

[Event "2nd Cambridge Open 2024"]
[Site "Cambridge"]
[Date "2024.02.21"]
[Round "4.46"]
[White "Maton, Emily"]
[Black "Gooding, Ian"]
[Result "1/2-1/2"]
[ECO "D10"]
[WhiteElo "1736"]
[BlackElo "1923"]
[Annotator "RC"]
[PlyCount "73"]
[EventDate "2024.02.18"]
[EventType "swiss"]
[EventCountry "ENG"]
[SourceTitle "playchess.com"]
[Source "ChessBase"]
[SourceQuality "1"]
[TimeControl "5400+30"]

1. d4 {[%emt 0:00:02]} d5 {[%emt 0:00:11]} 2. c4 {[%emt 0:00:04]} c6 {[%emt 0:00:04]} 3. cxd5 {[%emt 0:00:05]} cxd5 {[%emt 0:00:02]} 4. Bf4 {[%emt 0:00:08]} Nc6 {[%emt 0:01:57]} 5. Nc3 {[%emt 0:00:09]} Nf6 {[%emt 0:00:34]} 6. e3 {[%emt 0:00:10]} Ne4 {[%emt 0:10:15]} 7. Nge2 {[%emt 0:00:30]} g5 {[%emt 0:03:52]} 8. Bg3 {[%emt 0:00:07]} Qa5 {[%emt 0:07:12]} 9. f3 {[%emt 0:05:28]} Nxg3 {[%emt 0:00:33]} 10. hxg3 {[%emt 0:00:45]} Bf5 {[%emt 0:07:28]} 11. Nc1 {[%emt 0:05:44]} e6 {[%emt 0:04:29]} 12. Nb3 {[%emt 0:03:29]} Qc7 {[%emt 0:01:42]} 13. Kf2 {[%emt 0:02:18]} Bd6 {[%emt 0:11:06]} 14. f4 {[%emt 0:02:02]} Qe7 {[%emt 0:03:07]} 15. Bd3 {[%emt 0:01:58]} gxf4 {[%emt 0:06:19]} 16. exf4 {[%emt 0:01:24]} Qf6 {[%emt 0:02:25]} 17. Re1 {[%emt 0:10:13]} O-O-O {[%emt 0:03:07]} 18. Bb5 {[%emt 0:02:24]} Rhg8 {[%emt 0:04:38]} 19. Bxc6 {[%emt 0:01:14]} bxc6 {[%emt 0:01:53]} 20. Qe2 {[%emt 0:05:46]} Qg6 {[%emt 0:05:58]} 21. Qf3 {[%emt 0:06:13]} Rg7 {[%emt 0:03:45]} 22. Rac1 {[%emt 0:04:33]} Kd7 {[%emt 0:00:42]} 23. Ne2 {[%emt 0:03:51]} Bb4 {[%emt 0:04:03]} 24. Nc3 {[%emt 0:07:07]} Rdg8 {[%emt 0:01:07]} 25. a3 {[%emt 0:02:28]} Bd6 {[%emt 0:05:04]} 26. Ne2 {[%emt 0:02:38]} Bd3 {[%emt 0:00:11]} 27. Rc3 {[%emt 0:01:40]} Bc4 {[%emt 0:01:35]} 28. Na5 {[%emt 0:01:38]} Bxe2 {[%emt 0:01:19]} 29. Rxe2 {[%emt 0:00:26]} Qf6 {[%emt 0:00:13]} 30. Nb3 {[%emt 0:08:22]} Rxg3 {[%emt 0:01:40]} 31. Qxg3 {[%emt 0:00:05]} Rxg3 {[%emt 0:00:02]} 32. Rxg3 {[%emt 0:00:07]} Qxf4+ {[%emt 0:00:37]} 33. Rf3 {[%emt 0:00:06]} Qh4+ {[%emt 0:00:56]} 34. g3 {[%emt 0:01:37]} Qh2+ {[%emt 0:01:05]} 35. Kf1 {[%emt 0:01:45]} Qh1+ {[%emt 0:01:06]} 36. Kf2 {[%emt 0:00:09]} Qh5 {[%emt 0:01:03]} 37. Kg2 {[%emt 0:01:39]} 1/2-1/2

[Event "2nd Cambridge Open 2024"]
[Site "Cambridge"]
[Date "2024.02.21"]
[Round "4.47"]
[White "Chan, Michelle (Ngo Yu)"]
[Black "Lazarus, Simon E"]
[Result "1-0"]
[ECO "B01"]
[WhiteElo "1681"]
[BlackElo "1845"]
[Annotator "NA RC"]
[PlyCount "91"]
[EventDate "2024.02.18"]
[EventType "swiss"]
[EventCountry "ENG"]
[SourceTitle "playchess.com"]
[Source "ChessBase"]
[SourceQuality "1"]
[TimeControl "5400+30"]

1. e4 {[%emt 0:02:03]} d5 {[%emt 0:00:14]} 2. exd5 {[%emt 0:00:06]} Nf6 {[%emt 0:00:08]} 3. Nf3 {[%emt 0:00:06]} Qxd5 {[%emt 0:00:57]} 4. Nc3 {[%emt 0:00:17]} Qd8 {[%emt 0:04:35]} 5. Bc4 {[%emt 0:01:16]} Bf5 {[%emt 0:00:26]} 6. d4 {[%emt 0:02:09]} e6 {[%emt 0:00:25]} 7. Nh4 {[%emt 0:03:37]} Bg4 {[%emt 0:02:27]} 8. Qd3 {[%emt 0:06:45]} Bd6 {[%emt 0:09:32]} 9. h3 {[%emt 0:01:42]} Bh5 {[%emt 0:00:23]} 10. g4 {[%emt 0:01:01]} Bg6 {[%emt 0:00:33]} 11. Nxg6 {[%emt 0:00:06]} hxg6 {[%emt 0:00:08]} 12. Bg5 {[%emt 0:01:04]} c6 {[%emt 0:03:34]} 13. O-O-O {[%emt 0:07:31]} Qc7 {[%emt 0:03:37]} 14. Bxf6 {[%emt 0:08:26]} gxf6 {[%emt 0:02:14]} 15. Rhe1 {[%emt 0:01:10]} Kf8 {[%emt 0:05:13]} 16. Bxe6 {[%emt 0:02:26]} fxe6 {[%emt 0:01:18]} 17. Rxe6 {[%emt 0:02:03]} Bf4+ {[%emt 0:06:03]} 18. Kb1 {[%emt 0:00:07]} Qf7 {[%emt 0:01:42]} 19. Rde1 {[%emt 0:04:40]} Nd7 {[%emt 0:19:04]} 20. Qe4 {[%emt 0:00:27]} Be5 {[%emt 0:02:42]} 21. d5 {[%emt 0:04:19]} cxd5 {[%emt 0:05:28]} 22. Qb4+ {[%emt 0:02:26]} Kg8 {[%emt 0:00:45]} 23. Re7 {[%emt 0:03:22]} a5 {[%emt 0:07:35]} 24. Qa3 {[%emt 0:02:00]} Qf8 {[%emt 0:01:08]} 25. Nxd5 {[%emt 0:06:16]} Rh7 {[%emt 0:04:57]} 26. f4 {[%emt 0:02:25]} b5 {[%emt 0:04:54]} 27. fxe5 {[%emt 0:02:06]} b4 {[%emt 0:00:57]} 28. Qb3 {[%emt 0:00:09]} Rxe7 {[%emt 0:02:14]} 29. Nxe7+ {[%emt 0:00:37]} Kh7 {[%emt 0:01:27]} 30. Nxg6 {[%emt 0:05:28]} Kxg6 {[%emt 0:02:32]} 31. Qd3+ {[%emt 0:00:07]} Kh6 {[%emt 0:00:39]} 32. Qxd7 {[%emt 0:00:31]} Rd8 {[%emt 0:01:06]} 33. Qf5 {[%emt 0:00:17]} fxe5 {[%emt 0:00:17]} 34. Qxf8+ {[%emt 0:02:20]} Rxf8 {[%emt 0:00:08]} 35. b3 {[%emt 0:00:06]} Re8 {[%emt 0:00:30]} 36. h4 {[%emt 0:00:22]} e4 {[%emt 0:00:51]} 37. Re3 {[%emt 0:00:13]} Kg6 {[%emt 0:00:17]} 38. c4 {[%emt 0:02:20]} Kf6 {[%emt 0:01:19]} 39. Kc2 {[%emt 0:01:13]} Ke5 {[%emt 0:00:08]} 40. Kd2 {[%emt 0:01:18]} Rf8 {[%emt 0:00:37]} 41. Re2 {[%emt 0:00:54]} Rf3 {[%emt 0:02:20]} 42. Rg2 {[%emt 0:01:01]} Kd4 {[%emt 0:01:48]} 43. g5 {[%emt 0:00:33]} Rc3 {[%emt 0:00:44]} 44. g6 {[%emt 0:01:13]} e3+ {[%emt 0:01:19]} 45. Kd1 {[%emt 0:00:42]} Ke4 {[%emt 0:03:10]} 46. g7 {[%emt 0:01:00]} 1-0

[Event "2nd Cambridge Open 2024"]
[Site "Cambridge"]
[Date "2024.02.21"]
[Round "5.1"]
[White "Wachinger, Nikolas"]
[Black "Sonis, Francesco"]
[Result "1/2-1/2"]
[ECO "B51"]
[WhiteElo "2437"]
[BlackElo "2573"]
[Annotator "TA"]
[PlyCount "81"]
[EventDate "2024.02.18"]
[EventType "swiss"]
[EventCountry "ENG"]
[SourceTitle "playchess.com"]
[Source "ChessBase"]
[SourceQuality "1"]
[TimeControl "5400+30"]

{[%evp 9,81,17,11,7,25,16,18,12,14,12,22,9,4,7,6,6,8,-141,-31,-16,-25,-25,-18,-23,-27,-35,8,21,14,15,12,17,16,0,0,-6,-6,-11,0,0,14,0,6,7,3,0,0,0,2,5,27,27,27,12,9,8,8,10,18,8,18,0,0,0,0,0,9,9,38,38,38,38,38,38]} 1. e4 {[%emt 0:02:35]} c5 {[%emt 0:00:04]} 2. Nf3 {[%emt 0:00:18]} d6 {[%emt 0:00:08]} 3. Bb5+ {[%emt 0:00:20]} Nd7 {[%emt 0:00:08]} 4. d4 {[%emt 0:00:16]} cxd4 {[%emt 0:00:09]} 5. Nxd4 {[%emt 0:00:07]} Ngf6 {[%emt 0:00:23]} 6. O-O {[%emt 0:00:10]} a6 {[%emt 0:02:55]} 7. Bd3 {[%emt 0:00:31]} Nc5 {[%emt 0:00:26][%cal Oe7e5]} 8. Nc3 {[%emt 0:02:57] The position is equal.} g6 {[%emt 0:00:08]} 9. Re1 {[%emt 0:03:02]} Bg7 {[%emt 0:03:24]} 10. Bf1 {[%emt 0:01:45]} O-O {[%emt 0:00:08]} 11. Bg5 {[%emt 0:03:30]} h6 {[%emt 0:00:59]} 12. Bh4 {[%emt 0:00:21]} e6 {[%emt 0:12:11]} 13. Qd2 {[%emt 0:06:52]} (13. Nb3 $11 b6 14. Nxc5 bxc5 15. Rb1) 13... g5 {[%emt 0:09:56]} (13... Nfxe4 $1 $17 14. Nxe4 Qxh4 15. Nxc5 Qxd4) 14. Bg3 $15 {[%emt 0:00:11]} Nh5 {[%emt 0:00:04]} 15. Rad1 {[%emt 0:01:33]} Nxg3 {[%emt 0:02:48]} 16. hxg3 {[%emt 0:00:04]} Bd7 {[%emt 0:06:25]} 17. Nb3 {[%emt 0:08:12] [#] Threatens to win with Nxc5.} Na4 {[%emt 0:04:30]} 18. Nxa4 {[%emt 0:07:01]} Bxa4 {[%emt 0:00:08]} 19. c3 {[%emt 0:01:22]} Bxb3 {[%emt 0:00:28]} 20. axb3 {[%emt 0:00:08]} Qb6 {[%emt 0:00:04]} 21. b4 {[%emt 0:00:23]} Rfd8 {[%emt 0:00:05]} 22. Qe3 {[%emt 0:00:52]} Qxe3 {[%emt 0:01:44]} 23. Rxe3 {[%emt 0:00:02]} Kf8 {[%emt 0:00:05]} 24. Ra1 {[%emt 0:00:28]} Ke7 {[%emt 0:00:05]} 25. g4 {[%emt 0:00:51]} d5 {[%emt 0:01:07]} 26. exd5 {[%emt 0:00:15]} Rxd5 {[%emt 0:00:05]} 27. Rd3 {[%emt 0:00:12]} Rad8 {[%emt 0:01:59]} 28. Rad1 {[%emt 0:00:11]} R8d6 {[%emt 0:01:43]} 29. Be2 {[%emt 0:01:06]} Kd7 {[%emt 0:09:08]} 30. Kf1 {[%emt 0:01:20]} Kc7 {[%emt 0:00:11]} 31. g3 {[%emt 0:01:00]} b5 {[%emt 0:01:42]} 32. Ke1 {[%emt 0:02:02]} Kb6 {[%emt 0:00:25]} 33. Kd2 {[%emt 0:00:41]} Rd7 {[%emt 0:02:06]} 34. Kc2 {[%emt 0:00:35]} Be5 {[%emt 0:01:52]} 35. Bf3 {[%emt 0:00:47]} Rxd3 {[%emt 0:02:38]} 36. Rxd3 {[%emt 0:00:03]} Rxd3 {[%emt 0:02:52]} 37. Kxd3 $11 {[%emt 0:00:12] KB-KB} f5 {[%emt 0:01:12]} 38. Bd1 {[%emt 0:00:47]} f4 {[%emt 0:00:26]} 39. gxf4 {[%emt 0:00:27] White is slightly better.} Bxf4 {[%emt 0:00:12]} 40. Bb3 {[%emt 0:00:09]} e5 {[%emt 0:00:05]} 41. Bd5 {[%emt 0:00:28] Weighted Error Value: White=0.12 (very precise) /Black=0.09 (flawless) .  Mistake:       	White=1     	Black=1      Inaccurate:     	---       	Black=2      OK:         	White=16    	Black=18     Best:        	---       	Black=1} 1/2-1/2